{"text_format":"3","workbook":"xlsx","n_sheets":1,"sheets":["PRICING SHEET"],"not_rendered":{"external_links":1,"defined_names":7},"read":"whole","date_system":"1900"}

{"sheet":"PRICING SHEET","index":0,"n_rows":148,"n_cols":6,"rows_kept":148,"merged":[[1,0,1,5],[4,0,4,5],[70,0,70,5],[144,1,144,4]]}
[]
["THE UNDERSIGNED CERTIFIES THAT (CONTRACTOR NAME)___________________________\nIS CURRENTLY REGISTERED WITH THE VIRGINIA STATE BOARD OF CONTRACTORS AS REQUIRED BY THE CODE OF VIRGINIA.  CERTIFICATE NUMBER _________________ WAS ISSUED ON THE ________DAY OF _____________, 20XX.  THE UNDERSIGNED FURTHER CERTIFIES THAT THE REGISTRATION FEE AND ALL RENEWAL FEES REQUIRED UNDER LAW HAVE BEEN PAID.  THE CONTRACTOR AGREES TO FURNISH ALL NECESSARY LABOR, EQUIPMENT, MATERIALS, AND ALL THINGS NECESSARY TO PERFORM THE WORK AS SET FORTH IN ACCORDANCE WITH THE PLANS AND SPECIFICATIONS. THE CONTRACTOR AGREES TO PERFORM RELATED WORK FOR THE FOLLOWING ITEMS AT THE FOLLOWING STIPULATED PRICES: (ALL PRICES INCLUDE PROVISION AND INSTALLATION)."]
[]
[]
["PRICING SHEET FOR S. GLEBE RD. & S. EADS ST. ONLY"]
[null,"GENERAL EARTHWORK"]
["BID ITEM #","DESCRIPTION","QTY","UNIT","UNIT PRICE","TOTAL"]
[1,"General Excavation, only when not included in other pay items",25,"CY",null,{"$f":"C8*E8","v":{"v":0,"d":"$0.00"}}]
[2,"Test Pits (or Test Bores), Up to 6' Deep (with restoration)",5,"EA",null,{"$f":"C9*E9","v":{"v":0,"d":"$0.00"}}]
[3,"Aggregate, VDOT #21-A  (Compacted in Place per VDOT standards & Specs)",50,"CY",null,{"v":0,"d":"$0.00"}]
[{"$nulls":4},"SUBTOTAL",{"$f":"SUM(F8:F10)","v":{"v":0,"d":"$0.00"}}]
[]
[null,"CONCRETE WORK"]
["BID ITEM #","DESCRIPTION","QTY","UNIT","UNIT PRICE","TOTAL"]
[4,"Concrete Curb, Standard 6\" (VDOT CG-2), includes curb for aprons, ramps, etc.",35,"LF",null,{"$f":"C15*E15","v":{"v":0,"d":"$0.00"}}]
[5,"Concrete Curb, Standard 4\" (VDOT CG-3), includes curb for aprons, ramps, etc.",65,"LF",null,{"$f":"C16*E16","v":{"v":0,"d":"$0.00"}}]
[6,"Concrete Curb & Gutter, Standard C-2 and C-2R (Arlington County Detail R-2.0), includes curb & gutter for aprons, ramps, etc.",70,"LF",null,{"v":0,"d":"$0.00"}]
[7,"Concrete Curb & Gutter, Combination 6\" (VDOT CG-6), includes curb & gutter for aprons, ramps, etc.",120,"LF",null,{"v":0,"d":"$0.00"}]
[8,"Concrete Sidewalk, 4\" Thickness (Arlington County Detail R-2.0)",320,"SY",null,{"v":0,"d":"$0.00"}]
[9,"CG-12 Detectable Warning Surface - Truncated Domes, VDOT Standard \"Safety Yellow\" color. ",14,"SY",null,{"v":0,"d":"$0.00"}]
[{"$nulls":4},"SUBTOTAL",{"$f":"SUM(F15:F20)","v":{"v":0,"d":"$0.00"}}]
[]
[null,"ASPHALT WORK"]
["BID ITEM #","DESCRIPTION","QTY","UNIT","UNIT\nPRICE","TOTAL"]
[10,"Asphalt Concrete, Planing or Milling (1/2\" to 3\" Depth)",2085,"SY",null,{"$f":"C25*E25","v":{"v":0,"d":"$0.00"}}]
[11,"Asphalt Concrete, Base Course (VDOT BM-25.0A)",55,"TON",null,{"$f":"C26*E26","v":{"v":0,"d":"$0.00"}}]
[12,"Asphalt Concrete, Surface Course (VDOT SM-9.5D)",265,"TON",null,{"v":0,"d":"$0.00"}]
[{"$nulls":4},"SUBTOTAL",{"$f":"SUM(F25:F27)","v":{"v":0,"d":"$0.00"}}]
[]
[null,"WATERMAIN WORK"]
["BID ITEM #","DESCRIPTION","QTY","UNIT","UNIT\nPRICE","TOTAL"]
[13,"Connect To Existing 6-Inch Water Main, only if required",1,"EA",null,{"$f":"C32*E32","v":{"v":0,"d":"$0.00"}}]
[14,"Remove Existing Fire Hydrant, only if required",1,"EA",null,{"$f":"C33*E33","v":{"v":0,"d":"$0.00"}}]
[15,"Remove And Reset Existing Fire Hydrant",1,"EA",null,{"v":0,"d":"$0.00"}]
[16,"Install New Fire Hydrant (includes Fire Hydrant, Gate Valve with Valve Box and up to 20 LF 6-inch DIP CL-52), only if required",1,"EA",null,{"v":0,"d":"$0.00"}]
[17,"6-Inch Water Main, DIP CL-52, > 6' Deep, only if required",10,"LF",null,{"v":0,"d":"$0.00"}]
[{"$nulls":4},"SUBTOTAL",{"$f":"SUM(F32:F36)","v":{"v":0,"d":"$0.00"}}]
[]
[null,"TRAFFIC SIGNAL WORK"]
["BID ITEM #","DESCRIPTION","QTY","UNIT","UNIT\nPRICE","TOTAL"]
[18,"Traffic Signal Upgrade of S. Glebe Rd. & S. Eads St. as outlined in Construction Plans",1,"LS",null,{"$f":"IFERROR($C41*$E41, \"\")","v":{"v":0,"d":"$0.00"}}]
[{"$nulls":4},"SUBTOTAL",{"$f":"SUM(F41)","v":{"v":0,"d":"$0.00"}}]
[]
[null,"PAVEMENT MARKING AND SIGNAGE WORK"]
["BID ITEM #","DESCRIPTION","QTY","UNIT","UNIT\nPRICE","TOTAL"]
[19,"Twenty Four (24) Inch Transverse Markings, Note: Used For Continental (Ladder) Crosswalk",840,"LF",null,{"$f":"IFERROR($C46*$E46, \"\")","v":{"v":0,"d":"$0.00"}}]
[20,"Four (4) Inch, White or Yellow, Longitudinal Solid Line",340,"LF",null,{"v":0,"d":"$0.00"}]
[21,"Six (6) Inch, White or Yellow, Longitudinal Solid Line",70,"LF",null,{"v":0,"d":"$0.00"}]
[22,"Single Arrows",1,"EA",null,{"v":0,"d":"$0.00"}]
[23,"Standard Bicycle Symbols (MUTCD, Chapter 9C, Figure 9C-3), \"Bike Symbol\", \"Helmeted Bicyclist Symbol\"",1,"EA",null,{"v":0,"d":"$0.00"}]
[24,"Colorized Bike Lane Coatings (per Specification 02900)",2,"SY",null,{"v":0,"d":"$0.00"}]
[25,"Traffic Control Sign (Typical Stop, Yield, No Parking, Speed Limit, or Similar)",1,"EA",null,{"v":0,"d":"$0.00"}]
[{"$nulls":4},"SUBTOTAL",{"$f":"SUM(F46:F52)","v":{"v":0,"d":"$0.00"}}]
[]
[null,"LANDSCAPE AND HARDSCAPE RESTORATION WORK"]
["BID ITEM #","DESCRIPTION","QTY","UNIT","UNIT\nPRICE","TOTAL"]
[26,"Sod, Tall Fescue/Bluegrass Mixture, 2\" topsoil + lime and fertilizer (Arlington County Spec #329200)",45,"SY",null,{"$f":"IFERROR($C57*$E57, \"\")","v":{"v":0,"d":"$0.00"}}]
[27,"Chain Link Fence, Height Less Than or Equal to 6'",50,"LF",null,{"v":0,"d":"$0.00"}]
[{"$nulls":4},"SUBTOTAL",{"$f":"SUM(F57:F58)","v":{"v":0,"d":"$0.00"}}]
[]
[null,"E&SC, MOT & MOBILIZATION WORK"]
["BID ITEM #","DESCRIPTION","QTY","UNIT","UNIT\nPRICE","TOTAL"]
[28,"Temporary Erosion and Sediment Controls (E&SC)",1,"LS",null,{"$f":"C63*E63","v":{"v":0,"d":"$0.00"}}]
[29,"Maintenance of Traffic (MOT)",1,"LS",null,{"$f":"C64*E64","v":{"v":0,"d":"$0.00"}}]
[31,"Mobilization and De-Mobilization ",1,"LS",null,{"$f":"C65*E65","v":{"v":0,"d":"$0.00"}}]
[{"$nulls":4},"SUBTOTAL",{"$f":"SUM(F63:F65)","v":{"v":0,"d":"$0.00"}}]
[]
[{"$nulls":4},"TOTAL (S. GLEBE & S. EADS ST.):",{"$f":"SUM(F66,F59,F53,F42,F37,F28,F21,F11)","v":{"v":0,"d":"$0.00"}}]
[]
[]
["PRICING SHEET FOR WASHINGTON BLVD. SIGNALS ONLY."]
[null,"GENERAL EARTHWORK"]
["BID ITEM #","DESCRIPTION","QTY","UNIT","UNIT PRICE","TOTAL"]
[1,"General Excavation, only when not included in other pay items",25,"CY",null,{"$f":"C74*E74","v":{"v":0,"d":"$0.00"}}]
[2,"Test Pits (or Test Bores), Up to 6' Deep (with restoration)",10,"EA",null,{"$f":"C75*E75","v":{"v":0,"d":"$0.00"}}]
[3,"Select Borrow (VDOT Section 207 - Select Material, Type I)",5,"CY",null,{"v":0,"d":"$0.00"}]
[4,"Aggregate, VDOT #21-A  (Compacted in Place per VDOT standards & Specs)",{"$f":"25+10","v":35},"CY",null,{"v":0,"d":"$0.00"}]
[{"$nulls":4},"SUBTOTAL",{"$f":"SUM(F74:F77)","v":{"v":0,"d":"$0.00"}}]
[]
[null,"CONCRETE WORK"]
["BID ITEM #","DESCRIPTION","QTY","UNIT","UNIT PRICE","TOTAL"]
[6,"Concrete Curb, Standard Header Curb C-3 (Arlington County Detail R-2.0), includes curb for aprons, ramps, etc.",{"$f":"70+50","v":120},"LF",null,{"$f":"C82*E82","v":{"v":0,"d":"$0.00"}}]
[7,"Concrete Curb & Gutter, Standard C-2 and C-2R (Arlington County Detail R-2.0), includes curb & gutter for aprons, ramps, etc.",330,"LF",null,{"$f":"C83*E83","v":{"v":0,"d":"$0.00"}}]
[8,"Concrete Sidewalk, 4\" Thickness (Arlington County Detail R-2.0)",230,"SY",null,{"v":0,"d":"$0.00"}]
[9,"CG-12 Detectable Warning Surface - Truncated Domes",{"$f":"13+3","v":16},"SY",null,{"v":0,"d":"$0.00"}]
[10,"Concrete Pavers, Remove and Reset (Arlington County Detail R-2.1)",25,"SY",null,{"v":0,"d":"$0.00"}]
[{"$nulls":4},"SUBTOTAL",{"$f":"SUM(F82:F86)","v":{"v":0,"d":"$0.00"}}]
[]
[null,"ASPHALT WORK"]
["BID ITEM #","DESCRIPTION","QTY","UNIT","UNIT\nPRICE","TOTAL"]
[11,"Asphalt Concrete, Planing or Milling (1/2\" to 3\" Depth)",3950,"SY",null,{"$f":"C91*E91","v":{"v":0,"d":"$0.00"}}]
[12,"Asphalt Concrete, Base Course (VDOT BM-25.0A)",50,"TON",null,{"$f":"C92*E92","v":{"v":0,"d":"$0.00"}}]
[13,"Asphalt Concrete, Surface Course (VDOT SM-9.5D)",470,"TON",null,{"v":0,"d":"$0.00"}]
[{"$nulls":4},"SUBTOTAL",{"$f":"SUM(F91:F93)","v":{"v":0,"d":"$0.00"}}]
[]
[null,"WATERMAIN WORK"]
["BID ITEM #","DESCRIPTION","QTY","UNIT","UNIT\nPRICE","TOTAL"]
[14,"Connect To Existing 12-Inch Water Main",2,"EA",null,{"$f":"C98*E98","v":{"v":0,"d":"$0.00"}}]
[15,"Remove Existing Fire Hydrant",2,"EA",null,{"$f":"C99*E99","v":{"v":0,"d":"$0.00"}}]
[16,"Install New Fire Hydrant (includes Fire Hydrant, Gate Valve with Valve Box and up to 20 LF 6-inch DIP CL-52)",2,"EA",null,{"v":0,"d":"$0.00"}]
[17,"6-Inch Water Main, DIP CL-52, > 6' Deep",60,"LF",null,{"v":0,"d":"$0.00"}]
[{"$nulls":4},"SUBTOTAL",{"$f":"SUM(F98:F101)","v":{"v":0,"d":"$0.00"}}]
[]
[null,"TRAFFIC SIGNAL WORK"]
["BID ITEM #","DESCRIPTION","QTY","UNIT","UNIT\nPRICE","TOTAL"]
[18,"Traffic Signal Upgrade of Washington Blvd. & N. Glebe Rd. as outlined in Construction Plans",1,"LS",null,{"$f":"C106*E106","v":{"v":0,"d":"$0.00"}}]
[19,"Traffic Signal Upgrade of Washington Blvd. & Patrick Henry Drive as outlined in Construction Plans",1,"LS",null,{"$f":"C107*E107","v":{"v":0,"d":"$0.00"}}]
[20,"Remove Existing Solar Powered School Beacon. Note - Removed Beacon shall be salvaged as per direction of Project Officer. ",1,"LS",null,{"v":0,"d":"$0.00"}]
[{"$nulls":4},"SUBTOTAL",{"$f":"SUM(F106:F108)","v":{"v":0,"d":"$0.00"}}]
[]
[null,"PAVEMENT MARKING AND SIGNAGE WORK"]
["BID ITEM #","DESCRIPTION","QTY","UNIT","UNIT\nPRICE","TOTAL"]
[21,"Eighteen (18) Inch Transverse Markings",25,"LF",null,{"$f":"C113*E113","v":{"v":0,"d":"$0.00"}}]
[22,"Twenty Four (24) Inch Transverse Markings, Note: Used For Continental (Ladder) Crosswalk",{"$f":"1100+300","v":1400},"LF",null,{"$f":"C114*E114","v":{"v":0,"d":"$0.00"}}]
[23,"Four (4) Inch, White or Yellow, Longitudinal Solid Line",550,"LF",null,{"v":0,"d":"$0.00"}]
[24,"Four (4) Inch Longitudinal Skip Line (Ten (10) Foot Line/Thirty (30) Foot Spacing), Note: Forty (40) LF Consists of Ten (10) LF of Marking and Thirty (30) LF of Space",100,"LF",null,{"v":0,"d":"$0.00"}]
[25,"Four (4) Inch Longitudinal Skip Line (Two (2) Foot Line/Ten (10) Foot Spacing), Note: Twelve (12) LF Consists of Two (2) LF of Marking and Ten (10) LF of Space, **Turn Lane Skips**",50,"LF",null,{"v":0,"d":"$0.00"}]
[26,"Six (6) Inch, White or Yellow, Longitudinal Solid Line",50,"LF",null,{"v":0,"d":"$0.00"}]
[27,"Six (6) Inch Longitudinal Skip Line (Two (2) Foot Line/ Four (4) Foot Spacing), Note: Twelve (12) LF Consists of Two (2) LF of Marking and Four (4) LF of Space",150,"LF",null,{"v":0,"d":"$0.00"}]
[28,"Twelve (12) Inch Yellow Longitudinal Centerline, Two - Four (4) Inch Yellow Lines with Four (4) Inch Separation",{"$f":"40+60","v":100},"LF",null,{"v":0,"d":"$0.00"}]
[29,"Single Arrows",1,"EA",null,{"v":0,"d":"$0.00"}]
[30,"Standard Bicycle Symbols (MUTCD, Chapter 9C, Figure 9C-3), \"Bike Symbol\", \"Helmeted Bicyclist Symbol\"",1,"EA",null,{"v":0,"d":"$0.00"}]
[31,"Traffic Control Sign (Typical Stop, Yield, No Parking, Speed Limit, or Similar)",4,"EA",null,{"v":0,"d":"$0.00"}]
[32,"Traffic Control Sign (Typical Stop, Yield, No Parking, Speed Limit, or Similar), Relocate with Existing Post",3,"EA",null,{"v":0,"d":"$0.00"}]
[{"$nulls":4},"SUBTOTAL",{"$f":"SUM(F113:F124)","v":{"v":0,"d":"$0.00"}}]
[]
[null,"LANDSCAPE AND HARDSCAPE RESTORATION WORK"]
["BID ITEM #","DESCRIPTION","QTY","UNIT","UNIT\nPRICE","TOTAL"]
[33,"Seed, Mixture of 85% Tall Fescue/Bluegrass and 15% Annual Rye",5,"SY",null,{"$f":"C129*E129","v":{"v":0,"d":"$0.00"}}]
[34,"Sod, Zoysia",15,"SY",null,{"$f":"C130*E130","v":{"v":0,"d":"$0.00"}}]
[{"$nulls":4},"SUBTOTAL",{"$f":"SUM(F129:F130)","v":{"v":0,"d":"$0.00"}}]
[]
[null,"BUS STOP SHELTER AND FURNISHINGS"]
["BID ITEM #","DESCRIPTION","QTY","UNIT","UNIT\nPRICE","TOTAL"]
[35,"Bus Shelter Pad (Detail R-2.10)",12,"SY",null,{"$f":"C135*E135","v":{"v":0,"d":"$0.00"}}]
[{"$nulls":4},"SUBTOTAL",{"$f":"SUM(F135)","v":{"v":0,"d":"$0.00"}}]
[]
[null,"E&SC, MOT & MOBILIZATION WORK"]
["BID ITEM #","DESCRIPTION","QTY","UNIT","UNIT\nPRICE","TOTAL"]
[36,"Temporary Erosion and Sediment Controls (E&SC)",1,"LS",null,{"$f":"C140*E140","v":{"v":0,"d":"$0.00"}}]
[37,"Maintenance of Traffic (MOT)",1,"LS",null,{"$f":"C141*E141","v":{"v":0,"d":"$0.00"}}]
[38,"Mobilization and De-Mobilization",1,"LS",null,{"v":0,"d":"$0.00"}]
[{"$nulls":4},"SUBTOTAL",{"$f":"SUM(F140:F142)","v":{"v":0,"d":"$0.00"}}]
[]
[null,"TOTAL (WASHINGTON BLVD. SIGNALS):",{"$nulls":3},{"$f":"SUM(F143,F136,F131,F125,F109,F102,F94,F87,F78)","v":{"v":0,"d":"$0.00"}}]
[]
[]
[{"$nulls":4},"CONTRACT TOTAL:",{"$f":"F145+F68","v":{"v":0,"d":"$0.00"}}]